{"text_format":"1","workbook":"xlsx","n_sheets":3,"sheets":["Phase D Checklist","Attachment D","Data"],"not_rendered":{"charts":0,"images":0,"macros":1,"external_links":0,"defined_names":0,"comments":0,"pivot_tables":0},"unopened":[],"bounds":{"document_bytes":16777216,"sheet_cells":100000,"rows_first":2000,"rows_last":500,"rows_between":2000,"halvings":0,"cell_chars":16384,"cell_head_chars":4096},"cells_cut":0,"cells_raw":0,"read":"whole","date_system":"1900"}

{"sheet":"Phase D Checklist","index":0,"n_rows":62,"n_cols":20,"rows_kept":62,"cut":false,"hidden":false,"merged":[[39,11,39,20],[15,11,15,20],[17,11,17,20],[16,11,16,18],[16,19,16,20],[19,11,19,18],[22,11,22,20],[24,11,24,20],[32,11,32,20],[31,11,31,20],[30,11,30,20],[29,11,29,20],[27,6,27,9],[26,6,26,9],[25,6,25,9],[24,6,24,9],[23,6,23,9],[16,4,16,6],[17,4,17,6],[18,4,18,6],[19,4,19,6],[16,7,16,9],[17,7,17,9],[18,7,18,9],[19,7,19,9],[16,0,16,3],[19,0,19,3],[20,0,20,3],[20,4,20,9],[17,0,17,3],[18,0,18,3],[38,0,38,3],[38,4,38,5],[38,11,38,20],[36,11,36,20],[34,11,34,20],[23,11,23,20],[24,4,24,5],[28,4,28,5],[27,4,27,5],[26,4,26,5],[37,6,37,7],[37,8,37,9],[37,11,37,20],[21,0,21,9],[21,11,21,20],[34,0,34,3],[25,0,28,3],[33,11,33,20],[1,11,1,20],[10,11,10,20],[9,11,9,20],[14,0,14,3],[14,11,14,18],[14,19,14,20],[7,11,7,20],[6,11,6,20],[5,11,5,20],[4,11,4,20],[3,11,3,20],[13,19,13,20],[13,11,13,18],[12,11,12,20],[11,11,11,20],[8,11,8,20],[2,11,2,20],[7,0,7,3],[7,4,7,9],[6,0,6,3],[6,4,6,5],[6,6,6,9],[8,0,8,3],[9,0,9,9],[8,4,8,9],[10,0,10,9],[11,0,11,3],[11,4,11,9],[12,0,12,3],[12,4,12,9],[13,0,13,3],[15,0,15,3],[13,4,13,6],[14,4,14,6],[15,4,15,6],[13,7,13,9],[14,7,14,9],[15,7,15,9],[3,0,3,3],[3,4,3,9],[4,0,4,3],[5,0,5,3],[0,0,0,9],[1,0,1,3],[1,4,1,9],[2,0,2,3],[2,4,2,9],[5,4,5,5],[5,6,5,9],[4,8,4,9],[4,4,4,6],[0,11,0,20],[18,11,18,20],[19,19,19,20],[20,11,20,18],[20,19,20,20],[36,0,36,3],[36,4,36,5],[36,6,36,7],[36,8,36,9],[30,0,30,3],[30,4,30,5],[30,6,30,7],[30,8,30,9],[31,0,31,3],[31,4,31,5],[31,6,31,7],[31,8,31,9],[23,0,23,3],[24,0,24,3],[29,0,29,3],[29,4,29,5],[29,6,29,7],[29,8,29,9],[23,4,23,5],[34,4,34,5],[34,6,34,7],[34,8,34,9],[22,0,22,9],[32,0,32,3],[33,0,33,3],[25,11,28,20],[46,11,46,20],[47,0,47,8],[39,0,39,3],[39,4,39,5],[39,6,39,9],[38,6,38,7],[38,8,38,9],[32,4,32,5],[32,6,32,7],[32,8,32,9],[33,4,33,5],[33,6,33,7],[33,8,33,9],[37,0,37,3],[37,4,37,5],[25,4,25,5],[28,6,28,9],[45,19,45,20],[41,0,41,9],[42,0,42,1],[43,0,43,1],[45,0,45,4],[45,6,45,8],[42,3,42,5],[43,3,43,5],[43,7,43,8],[42,7,42,8],[44,0,44,4],[44,6,44,8],[44,19,44,20],[44,11,44,18],[35,0,35,9],[35,11,35,20],[61,0,61,1],[60,2,60,9],[61,2,61,9],[49,0,49,8],[48,11,48,20],[49,11,49,20],[50,11,50,20],[52,0,52,9],[53,0,57,9],[52,11,52,20],[53,11,57,20],[59,0,59,9],[60,0,60,1],[48,0,48,8],[50,0,50,8],[47,11,47,20],[46,0,46,3],[46,5,46,8],[41,11,41,20],[42,11,42,20],[43,11,43,20],[45,11,45,18]]}
["Project Information",null,null,null,null,null,null,null,null,null,null,"Project Information Instructions"]
["Project Name:",null,null,null,null,null,null,null,null,null,null,"Enter the name of the project that's summarized in this checklist."]
["OPS Number:",null,null,null,null,null,null,null,null,null,null,"Enter the OPS Number for the project that's summarized in this checklist."]
["Contract Number:",null,null,null,null,null,null,null,null,null,null,"Enter the contract number for the project that's summarized in this checklist"]
["Project Location Description:",null,null,null,null,null,null,"Roadway:",null,null,null,"Please enter a descriptive location for the project. This can include information such as the latitude/longitude or the road name and approximate mile marker. Specify if the project is located on the mainline or other alignment."]
["County(ies):",null,null,null,null,null,null,null,null,null,null,"Use the dropdown to select all counties in which this project is located. The field next to the dropdown will populate with all counties that are selected. To remove counties, select them again using the drop down."]
["Municipality(ies):",null,null,null,null,null,null,null,null,null,null,"Use the dropdown to select all municipalities in which the project is located. Multiple municipalities can be selected or removed in the same manner as counties above. "]
["Date:",null,null,null,null,null,null,null,null,null,null,"Enter the date on which this checklist is being completed."]
["Designer Name & Company:",null,null,null,null,null,null,null,null,null,null,"Enter the name of the engineer of record and the firm for which they work."]
[]
["Land Use / Regulated Surface Information",null,null,null,null,null,null,null,null,null,null,"Land Use / Regulated Surface Information"]
["Existing Site Description:",null,null,null,null,null,null,null,null,null,null,"Enter a description of the existing site (e.g., highway, maintenance yard, rest stop)."]
["Proposed Site Description:",null,null,null,null,null,null,null,null,null,null,"Enter a description of the proposed site (e.g., highway, maintenance yard, rest stop)."]
["Proposed Area of Disturbance (sf) (NJAC 7:8):",null,null,null,null,null,null,{"$f":"IF(E14=\"\",\"\",E14/43560)","v":""},null,null,null,"Enter the area of disturbance as defined by NJAC 7:8 Stormwater Management.",null,null,null,null,null,null,null,"Definition"]
["Proposed Soil Disturbance (sf) (SESC Act):",null,null,null,null,null,null,{"$f":"IF(E15=\"\",\"\",E15/43560)","v":""},null,null,null,"Enter the area of soil disturbance as defined by NJSA 4:24-39 (Soil Erosion and Sediment Control Act)",null,null,null,null,null,null,null,"Definition"]
["Proposed New Impervious Area (sf):",null,null,null,null,null,null,"",null,null,null,"Enter the net increase in impervious surface from pre-development to post-development."]
["Proposed New Motor Vehicle Surface (sf):",null,null,null,null,null,null,"",null,null,null,"Enter the net increase in motor vehicle surface as defined in NJAC 7:8 Stormwater Management.",null,null,null,null,null,null,null,"Definition"]
["Newly Collected Impervious Area (sf):",null,null,null,null,null,null,"",null,null,null,"Enter the total area of existing impervious surface that is being newly collected in a conveyance system."]
["Imp. Area Collected Due to Increase or Modification of Existing Drainage System Capacity (sf):",null,null,null,null,null,null,"",null,null,null,"Enter the total area of existing impervious surface that is being collected by an existing collection system that is being modified to increase the flow capacity of the system."]
["Total Regulated Impervious Surface (sf):",null,null,null,null,null,null,"",null,null,null,"Enter the total regulated impervious surface as defined in NJAC 7:8 Stormwater Management.",null,null,null,null,null,null,null,"Definition"]
["Does this project qualify as a major development?",null,null,null,null,null,null,null,null,null,null,"Enter whether the project meets the definition of major development as defined in NJAC 7:8 Stormwater Management.",null,null,null,null,null,null,null,"Definition"]
[]
["Permitting Information",null,null,null,null,null,null,null,null,null,null,"Permitting Information"]
["Soil Conservation District:",null,null,null,null,null,null,null,null,null,null,"Enter the name of applicable Soil Conservation Districts from which E&SC Review is required. Note: the drop down list populates based on the selected counties. If an applicable Soil Conservation District is not available then check that the counties have been selected properly."]
["SCD Project Number(s):",null,null,null,null,null,null,null,null,null,null,"Enter the project number from each SCD. Additional sections show up below for each selected SCD"]
[]
[]
[]
[]
["5G3 Construction Activities:",null,null,null,null,null,{"$f":"IF(E30=\"Yes\",\"Permit Number:\",\"\")","v":""},null,null,null,null,"Use the drop down to indicate if a 5G3 Permit is required. If so, enter the permit number."]
["Flood Hazard Area Permit:",null,null,null,null,null,{"$f":"IF(E31=\"Yes\",\"Permit Number:\",\"\")","v":""},null,null,null,null,"Use the drop down to indicate if a Flood Hazard Area Permit is required. If so, enter the permit number."]
["Freshwater Wetlands Permit:",null,null,null,null,null,"",null,null,null,null,"Use the drop down to indicate if a Freshwater Wetlands Permit is required. If so, enter the permit number."]
["Waterfront Development Permit:",null,null,null,null,null,"",null,null,null,null,"Use the drop down to indicate if a Waterfront Development Permit is required. If so, enter the permit number."]
["Coastal Wetlands Permit:",null,null,null,null,null,"",null,null,null,null,"Use the drop down to indicate if a Coastal Wetlands Permit is required. If so, enter the permit number."]
["CAFRA Permit:",null,null,null,null,null,"",null,null,null,null,"Use the drop down to indicate if a CAFRA Permit is required. If so, enter the permit number."]
["Permitting Information",null,null,null,null,null,null,null,null,null,null,"Permitting Information"]
["Pinelands Permit:",null,null,null,null,null,"",null,null,null,null,"Indicate whether the project falls under the jurisdiction of the Pinelands Comprehensive Management Plan. Note that stricter rule requirements may apply to projects subject to these requirements."]
["Delaware and Raritan Canal Commission Permit:",null,null,null,null,null,{"$f":"IF(E38=\"Yes\",\"Permit Number:\",\"\")","v":""},null,null,null,null,"Indicate whether the project is subject to the Delaware and Raritan Canal Commission Rules (NJAC 7:45). Note that stricter rule requirements may apply to projects subject to these requirements."]
["NJ Sports and Exposition Authority Permit:",null,null,null,null,null,{"$f":"IF(E39=\"Yes\",\"Permit Number:\",\"\")","v":""},null,null,null,null,"Indicate whether the project is subject to the New Jersey Sports and Exposition Authority (formerly NJ Meadowland Commission) rules (NJAC 9:14-1.1 et seq.). Note that stricter rule requirements may apply to projects subject to these requirements."]
["Are any other approvals or authorizations required for this project?",null,null,null,null,null,null,null,null,null,null,"Indicate whether there are other approvals or authorizations required for this project. For example, approvals required by the Army Corps of Engineers or US Coast Guard. List the approvals in cell G39."]
[]
["Site Design Information",null,null,null,null,null,null,null,null,null,null,"Site Design Information"]
["Are any structural stormwater BMPs included in the site design?",null,null,{"$f":"IF(C43=\"Yes\",\"Has a GIS deliverable containing the locations been prepared and submitted?\",\"\")","v":""},null,null,null,{"$f":"IF(C43=\"Yes\",\"Number of BMPs included in the site design:\",\"\")","v":""},null,null,null,"Indicate whether any structural stormwater BMPs will be constructed on the project. If so, indicate whether a GIS deliverable has been prepared and submitted to the NJTA."]
["Are any new or modified stormwater outfalls proposed?",null,null,{"$f":"IF(C44=\"Yes\",\"Has a GIS deliverable containing the locations been prepared and submitted?\",\"\")","v":""},null,null,null,{"$f":"IF(C44=\"Yes\", \"Number of new or modified outfalls:\",\"\")","v":""},null,null,null,"Indicate whether any new or modified stormwater outfalls will be constructed on the project. If so, indicate whether a GIS deliverable has been prepared and submitted to the NJTA."]
["Are any inlets being retrofitted to meet the requirements of Attachment C of the HASWGP?",null,null,null,null,null,{"$f":"IF(F45=\"Yes\",\"Number of retrofits:\",\"\")","v":""},null,null,null,null,"Indicate if any stormwater inlets will be retrofitted to meet the requirements of Attachment C of the HASWGP and the NJTA Design Manual. Do not include inlets that are reconstructed, relocated, or otherwise changed without retrofitting the grate.",null,null,null,null,null,null,null,"Applicability"]
["Does the project area contain any catch basins as defined in the HASWGP?",null,null,null,null,null,{"$f":"IF(F46=\"Yes\",\"Number of catch basins:\",\"\")","v":""},null,null,null,null,"Indicate whether there are any catch basins, as defined in the Highway Agency Stormwater General Permit, in the project area.",null,null,null,null,null,null,null,"Definition"]
["Will the catch basins be filled/removed as part of the project?",null,null,null,null,"Has a GIS deliverable containing the locations been prepared and submitted?",null,null,null,null,null,"Indicate whether any existing catch basins will be filled or removed as part of the project. Indicate whether a GIS deliverable has been prepared and submitted to the NJTA."]
["Is groundwater recharge required on this project?",null,null,null,null,null,null,null,null,null,null,"Indicate whether groundwater recharge is required for the project under NJAC 7:8-5.4."]
["Is water quality treatment required on this project?",null,null,null,null,null,null,null,null,null,null,"Indicate whether water quality treatment is required for the project under NJAC 7:8-5.5."]
["Is water quantity control required on this project?",null,null,null,null,null,null,null,null,null,null,"Indicate whether water quantity control is required for the project under NJAC 7:8-5.6."]
["Was a waiver from strict compliance under NJAC 7:8-5.2(e) claimed for this project?",null,null,null,null,null,null,null,null,null,null,"Indicate whether this project claimed a waiver from strict compliance under NJAC 7:-5.2(e)."]
[]
["Notes for Reviewer",null,null,null,null,null,null,null,null,null,null,"Notes for Reviewer"]
[null,null,null,null,null,null,null,null,null,null,null,"Use this section to add any notes for the reviewer. This area can be used to provide additional information, clarification, or explanations for why certain fields were not completed."]
[]
[]
[]
[]
[]
["Personnel Information"]
["Design Engineer:"]
["Reviewer(s):"]

{"sheet":"Attachment D","index":1,"n_rows":6,"n_cols":12,"rows_kept":6,"cut":false,"hidden":false,"merged":[[28,3,28,4],[17,3,17,4],[18,3,18,4],[19,3,19,4],[20,3,20,4],[21,3,21,4],[22,3,22,4],[23,3,23,4],[24,3,24,4],[25,3,25,4],[26,3,26,4],[27,3,27,4],[16,3,16,4],[5,3,5,4],[6,3,6,4],[7,3,7,4],[8,3,8,4],[9,3,9,4],[10,3,10,4],[11,3,11,4],[12,3,12,4],[13,3,13,4],[14,3,14,4],[15,3,15,4],[28,0,28,2],[17,0,17,2],[18,0,18,2],[19,0,19,2],[20,0,20,2],[21,0,21,2],[22,0,22,2],[23,0,23,2],[24,0,24,2],[25,0,25,2],[26,0,26,2],[27,0,27,2],[16,0,16,2],[5,0,5,2],[6,0,6,2],[7,0,7,2],[8,0,8,2],[9,0,9,2],[10,0,10,2],[11,0,11,2],[12,0,12,2],[13,0,13,2],[14,0,14,2],[15,0,15,2],[0,0,0,11],[1,0,1,11],[3,2,3,4],[4,0,4,2],[4,3,4,4],[3,10,3,11]]}
["Attachment D - Major Development Project List"]
["Provide the following information for each approved development or redevelopment project that is regulated by the Highway Agency MS4 NJPDES Permit, and not exempted under N.J.A.C. 7:8-1.6(b)."]
[]
["Highway Agency:",null,"New Jersey Turnpike Authority",null,null,"NJPDES #: ",{"$f":"IF('Phase D Checklist'!I5=\"New Jersey Turnpike\",\"NJG0153354\",IF('Phase D Checklist'!I5=\"Garden State Parkway\",\"NJG0156485\",\"\"))","v":""},"PI ID#:",{"$f":"IF('Phase D Checklist'!I5=\"New Jersey Turnpike\",222955,IF('Phase D Checklist'!I5=\"Garden State Parkway\",235697,\"\"))","v":""},"Calendar Year:",2021]
["Project Name",null,null,"Municipality / County",null,"5G3 Construction Stormwater Permit Auth.#","DLUR Stormwater Review? (Y/N)","Total Area of Disturbance (acres)","Water Quality Treatment Required? (Y/N)","Waiver Claimed Under N.J.A.C. 7:8-5.2(e)? (Y/N)","Project Design Engineer","Project Reviewer(s)"]
[{"$f":"IF('Phase D Checklist'!$E$21=\"Yes\",'Phase D Checklist'!$E$2,\"\")","v":""},null,null,{"$f":"IF('Phase D Checklist'!$E$21=\"Yes\",'Phase D Checklist'!$G$7,\"\")","v":""},null,{"$f":"IF('Phase D Checklist'!$E$21=\"Yes\",'Phase D Checklist'!$I$30,\"\")","v":""},{"$f":"IF('Phase D Checklist'!$E$21=\"Yes\",IF(OR('Phase D Checklist'!$E$31=\"Yes\",'Phase D Checklist'!$E$32=\"Yes\",'Phase D Checklist'!$E$33=\"Yes\",'Phase D Checklist'!$E$34=\"Yes\",'Phase D Checklist'!$E$35=\"Yes\"),\"Yes\",\"No\"),\"\")","v":""},{"$f":"IF('Phase D Checklist'!$E$21=\"Yes\",'Phase D Checklist'!$E$14/43560,\"\")","v":""},{"$f":"IF('Phase D Checklist'!$E$21=\"Yes\",'Phase D Checklist'!$J$49,\"\")","v":""},{"$f":"IF('Phase D Checklist'!$E$21=\"Yes\",'Phase D Checklist'!$J$51,\"\")","v":""},{"$f":"IF('Phase D Checklist'!$E$21=\"Yes\",'Phase D Checklist'!$C$61,\"\")","v":""},{"$f":"IF('Phase D Checklist'!$E$21=\"Yes\",'Phase D Checklist'!$C$62,\"\")","v":""}]

{"sheet":"Data","index":2,"n_rows":71,"n_cols":37,"rows_kept":71,"cut":false,"hidden":true,"merged":[[0,35,0,36]]}
["Counties","Atlantic","Bergen","Burlington","Camden","Cape May","Cumberland","Essex","Gloucester","Hudson","Hunterdon","Mercer","Middlesex","Monmouth","Morris","Ocean","Passaic","Salem","Somerset","Sussex","Union","Warren",null,"ACTIVE MUNICIPALITY LIST","CHOSEN MUNICIPALITY LIST",null,"WIDTH CHECK","SOIL CONSERVATION DISTRICTS",null,"SCD Options","ACTIVE SCDs","Yes/No",null,null,null,"Errors"]
["Atlantic","Absecon (Atlantic)","Allendale (Bergen)","Bass River (Burlington)","Audubon (Camden)","Avalon (Cape May)","Bridgeton (Cumberland)","Belleville (Essex)","Clayton (Gloucester)","Bayonne (Hudson)","Alexandria (Hunterdon)","East Windsor (Mercer)","Carteret (Middlesex)","Aberdeen (Monmouth)","Boonton Town (Morris)","Barnegat (Ocean)","Bloomingdale (Passaic)","Alloway (Salem)","Bedminster (Somerset)","Andover Borough (Sussex)","Berkeley Heights (Union)","Allamuchy (Warren)",0,"Bass River (Burlington)",null,"Atlantic","Burlington","Bergen",{"$f":"IF(W3=1,1,0)","v":0},null,0,"Yes",null,"Atlantic",2,"Please enter the project name (E2)."]
["Bergen","Atlantic City (Atlantic)","Alpine (Bergen)","Beverly (Burlington)","Audubon Park (Camden)","Cape May (Cape May)","Commercial (Cumberland)","Bloomfield (Essex)","Deptford (Gloucester)","East Newark (Hudson)","Bethlehem (Hunterdon)","Ewing (Mercer)","Cranbury (Middlesex)","Allenhurst (Monmouth)","Boonton Township (Morris)","Barnegat Light (Ocean)","Clifton (Passaic)","Carneys Point (Salem)","Bernards (Somerset)","Andover Township (Sussex)","Clark (Union)","Alpha (Warren)",0,"Beverly (Burlington)",null,"Bergen",null,"Burlington",{"$f":"IF(W4=1,1,0)","v":0},null,0,"No",null,"Bergen",{"$f":"1+AI2","v":3},"Please enter the OPS number (E3)."]
["Burlington","Brigantine (Atlantic)","Bergenfield (Bergen)","Bordentown City (Burlington)","Barrington (Camden)","Cape May Point (Cape May)","Deerfield (Cumberland)","Caldwell Borough (Essex)","East Greenwich (Gloucester)","Guttenberg (Hudson)","Bloomsbury (Hunterdon)","Hamilton (Mercer)","Dunellen (Middlesex)","Allentown (Monmouth)","Butler (Morris)","Bay Head (Ocean)","Haledon (Passaic)","Elmer (Salem)","Bernardsville (Somerset)","Branchville (Sussex)","Cranford (Union)","Belvidere (Warren)",0,"Bordentown City (Burlington)",null,"Burlington",null,"Camden",{"$f":"IF(W5=1,1,0)","v":0},null,0,null,null,"Burlington",{"$f":"1+AI3","v":4},"Please enter the contract number (E4)."]
["Camden","Buena (Atlantic)","Bogota (Bergen)","Bordentown Township (Burlington)","Bellmawr (Camden)","Dennis (Cape May)","Downe (Cumberland)","Cedar Grove (Essex)","Elk (Gloucester)","Harrison (Hudson)","Califon (Hunterdon)","Hightstown (Mercer)","East Brunswick (Middlesex)","Asbury Park (Monmouth)","Chatham Borough (Morris)","Beach Haven (Ocean)","Hawthorne (Passaic)","Elsinboro (Salem)","Bound Brook (Somerset)","Byram (Sussex)","Elizabeth (Union)","Blairstown (Warren)",0,"Bordentown Township (Burlington)",null,"Camden",null,"Cape-Atlantic",{"$f":"IF(OR(W2=1,W6=1),1,0)","v":0},null,0,null,null,"Camden",5,"Please enter a description of the project location (E5)."]
["Cape May","Buena Vista (Atlantic)","Carlstadt (Bergen)","Burlington City (Burlington)","Berlin Borough (Camden)","Lower (Cape May)","Fairfield (Cumberland)","City Of Orange (Essex)","Franklin (Gloucester)","Hoboken (Hudson)","Clinton Town (Hunterdon)","Hopewell Borough (Mercer)","Edison (Middlesex)","Atlantic Highlands (Monmouth)","Chatham Township (Morris)","Beachwood (Ocean)","Little Falls (Passaic)","Lower Alloways Creek (Salem)","Branchburg (Somerset)","Frankford (Sussex)","Fanwood (Union)","Franklin (Warren)",0,"Burlington City (Burlington)",null,"Cape May",null,"Cumberland Salem",{"$f":"IF(OR(W7=1,W18=1,),1,0)","v":0},null,0,null,null,"Cape May",6,"Please enter the county or counties in which the project is located (E6). You can select multiple counties by clicking them separately from the drop down. To unselect an active county, select it from the dropdown again."]
["Cumberland","Corbin City (Atlantic)","Cliffside Park (Bergen)","Burlington Township (Burlington)","Berlin Township (Camden)","Middle (Cape May)","Greenwich (Cumberland)","East Orange (Essex)","Glassboro (Gloucester)","Jersey City (Hudson)","Clinton Township (Hunterdon)","Hopewell Township (Mercer)","Helmetta (Middlesex)","Avon-By-The-Sea (Monmouth)","Chester Borough (Morris)","Berkeley (Ocean)","North Haledon (Passaic)","Mannington (Salem)","Bridgewater (Somerset)","Franklin (Sussex)","Garwood (Union)","Frelinghuysen (Warren)",0,"Burlington Township (Burlington)",null,"Cumberland",null,"Freehold",{"$f":"IF(OR(W13=1,W14=1),1,0)","v":0},null,0,null,null,"Essex",7,"Please enter the municipality or municipalities in which the project is located (E7). You can select multiple municipalities by clicking them separately from the drop down. To unselect an active municipality, select it from the dropdown again."]
["Essex","Egg Harbor (Atlantic)","Closter (Bergen)","Chesterfield (Burlington)","Brooklawn (Camden)","North Wildwood (Cape May)","Hopewell (Cumberland)","Essex Fells (Essex)","Greenwich (Gloucester)","Kearny (Hudson)","Delaware (Hunterdon)","Lawrence (Mercer)","Highland Park (Middlesex)","Belmar (Monmouth)","Chester Township (Morris)","Brick (Ocean)","Passaic (Passaic)","Oldmans (Salem)","Far Hills (Somerset)","Fredon (Sussex)","Hillside (Union)","Greenwich (Warren)",0,"Chesterfield (Burlington)",null,"Essex",null,"Gloucester",{"$f":"IF(W9=1,1,0)","v":0},null,0,null,null,"Gloucester",8,"Please enter the date (E8)."]
["Gloucester","Egg Harbor City (Atlantic)","Cresskill (Bergen)","Cinnaminson (Burlington)","Camden (Camden)","Ocean City (Cape May)","Lawrence (Cumberland)","Fairfield (Essex)","Harrison (Gloucester)","North Bergen (Hudson)","East Amwell (Hunterdon)","Pennington (Mercer)","Jamesburg (Middlesex)","Bradley Beach (Monmouth)","Denville (Morris)","Dover (Ocean)","Paterson (Passaic)","Penns Grove (Salem)","Franklin (Somerset)","Green (Sussex)","Kenilworth (Union)","Hackettstown (Warren)",0,"Cinnaminson (Burlington)",null,"Gloucester",null,"Hudson-Essex & Passaic",{"$f":"IF(OR(W8=1,W10=1,W17=1),1,0)","v":0},null,0,null,null,"Hudson",9,"Please enter the name of the design engineer and the company they work for (E9)."]
["Hudson","Estell Manor (Atlantic)","Demarest (Bergen)","Delanco (Burlington)","Cherry Hill (Camden)","Sea Isle City (Cape May)","Maurice River (Cumberland)","Glen Ridge (Essex)","Logan (Gloucester)","Secaucus (Hudson)","Flemington (Hunterdon)","Princeton Township (Mercer)","Metuchen (Middlesex)","Brielle (Monmouth)","Dover (Morris)","Eagleswood (Ocean)","Pompton Lakes (Passaic)","Pennsville (Salem)","Green Brook (Somerset)","Hamburg (Sussex)","Linden (Union)","Hardwick (Warren)",0,"Delanco (Burlington)",null,"Hudson",null,"Hunterdon",{"$f":"IF(W11=1,1,0)","v":0},null,0,null,null,"Mercer",10,"Please enter a description of the existing site (E12)."]
["Hunterdon","Folsom (Atlantic)","Dumont (Bergen)","Delran (Burlington)","Chesilhurst (Camden)","Stone Harbor (Cape May)","Millville (Cumberland)","Irvington (Essex)","Mantua (Gloucester)","Union City (Hudson)","Franklin (Hunterdon)","Trenton (Mercer)","Middlesex (Middlesex)","Colts Neck (Monmouth)","East Hanover (Morris)","Harvey Cedars (Ocean)","Prospect Park (Passaic)","Pilesgrove (Salem)","Hillsborough (Somerset)","Hampton (Sussex)","Mountainside (Union)","Harmony (Warren)",0,"Delran (Burlington)",null,"Hunterdon",null,"Mercer",{"$f":"IF(W12=1,1,0)","v":0},null,0,null,null,"Middlesex",11,"Please enter a description of the proposed site (E13)."]
["Mercer","Galloway (Atlantic)","East Rutherford (Bergen)","Eastampton (Burlington)","Clementon (Camden)","Upper (Cape May)","Shiloh (Cumberland)","Livingston (Essex)","Monroe (Gloucester)","Weehawken (Hudson)","Frenchtown (Hunterdon)","Washington (Mercer)","Milltown (Middlesex)","Deal (Monmouth)","Florham Park (Morris)","Island Heights (Ocean)","Ringwood (Passaic)","Pittsgrove (Salem)","Manville (Somerset)","Hardyston (Sussex)","New Providence (Union)","Hope (Warren)",0,"Eastampton (Burlington)",null,"Mercer",null,"Morris",{"$f":"IF(W15=1,1,0)","v":0},null,0,null,null,"Monmouth",12,"Please enter the the area of disturbance, as defined in the Stormwater Management Rules (E14).","The total area of disturbance is very low. Please note that it should be entered in square feet, not acres (E14). If the current value is correct, please disregard this notice."]
["Middlesex","Hamilton (Atlantic)","Edgewater (Bergen)","Edgewater Park (Burlington)","Collingswood (Camden)","West Cape May (Cape May)","Stow Creek (Cumberland)","Maplewood (Essex)","National Park (Gloucester)","West New York (Hudson)","Glen Gardner (Hunterdon)","West Windsor (Mercer)","Monroe (Middlesex)","Eatontown (Monmouth)","Hanover (Morris)","Jackson (Ocean)","Totowa (Passaic)","Quinton (Salem)","Millstone (Somerset)","Hopatcong (Sussex)","Plainfield (Union)","Independence (Warren)",0,"Edgewater Park (Burlington)",null,"Middlesex",null,"Ocean",{"$f":"IF(W16=1,1,0)","v":0},null,0,null,null,"Ocean",13,"Please enter the proposed soil disturbance, as defined in the Soil Erosion and Sediment Control Act (E15).","The total area of soil disturbance is very low. Please note that it should be entered in square feet, not acres (E15). If the current value is correct, please disregard this notice."]
["Monmouth","Hammonton (Atlantic)","Elmwood Park (Bergen)","Evesham (Burlington)","Gibbsboro (Camden)","West Wildwood (Cape May)","Upper Deerfield (Cumberland)","Millburn (Essex)","Newfield (Gloucester)",null,"Hampton (Hunterdon)",null,"New Brunswick (Middlesex)","Englishtown (Monmouth)","Harding (Morris)","Lacey (Ocean)","Wanaque (Passaic)","Salem (Salem)","Montgomery (Somerset)","Lafayette (Sussex)","Rahway (Union)","Knowlton (Warren)",0,"Evesham (Burlington)",null,"Monmouth",null,"Somerset-Union",{"$f":"IF(OR(W21=1, W19=1),1,0)","v":0},null,0,null,null,"Passaic",14,"Please enter the area of new impervious surface (E16).","The total area of new impervious surface is very low. Please note that it should be entered in square feet, not acres (E15). If the current value is correct, please disregard this notice."]
["Morris","Linwood (Atlantic)","Emerson (Bergen)","Fieldsboro (Burlington)","Gloucester Township (Camden)","Wildwood (Cape May)","Vineland (Cumberland)","Montclair (Essex)","Paulsboro (Gloucester)",null,"High Bridge (Hunterdon)",null,"North Brunswick (Middlesex)","Fair Haven (Monmouth)","Jefferson (Morris)","Lakehurst (Ocean)","Wayne (Passaic)","Upper Pittsgrove (Salem)","North Plainfield (Somerset)","Montague (Sussex)","Roselle (Union)","Liberty (Warren)",0,"Fieldsboro (Burlington)",null,"Morris",null,"Upper Delaware",{"$f":"IF(OR(W20=1,W22=1),1,0)","v":0},null,0,null,null,"Salem",15]
["Ocean","Longport (Atlantic)","Englewood (Bergen)","Florence (Burlington)","Gloucester City (Camden)","Wildwood Crest (Cape May)",null,"Newark (Essex)","Pitman (Gloucester)",null,"Holland (Hunterdon)",null,"Old Bridge (Middlesex)","Farmingdale (Monmouth)","Kinnelon (Morris)","Lakewood (Ocean)","West Milford (Passaic)","Woodstown (Salem)","Peapack & Gladstone (Somerset)","Newton (Sussex)","Roselle Park (Union)","Lopatcong (Warren)",0,"Florence (Burlington)",null,"Ocean",null,null,null,null,null,null,null,"Union",16]
["Passaic","Margate City (Atlantic)","Englewood Cliffs (Bergen)","Hainesport (Burlington)","Haddon (Camden)","Woodbine (Cape May)",null,"North Caldwell (Essex)","South Harrison (Gloucester)",null,"Kingwood (Hunterdon)",null,"Perth Amboy (Middlesex)","Freehold Borough (Monmouth)","Lincoln Park (Morris)","Lavallette (Ocean)","Woodland Park (Passaic)",null,"Raritan (Somerset)","Ogdensburg (Sussex)","Scotch Plains (Union)","Mansfield (Warren)",0,"Hainesport (Burlington)",null,"Passaic"]
["Salem","Mullica (Atlantic)","Fair Lawn (Bergen)","Lumberton (Burlington)","Haddon Heights (Camden)",null,null,"Nutley (Essex)","Swedesboro (Gloucester)",null,"Lambertville (Hunterdon)",null,"Piscataway (Middlesex)","Freehold Township (Monmouth)","Long Hill (Morris)","Little Egg Harbor (Ocean)",null,null,"Rocky Hill (Somerset)","Sandyston (Sussex)","Springfield (Union)","Oxford (Warren)",0,"Lumberton (Burlington)",null,"Salem"]
["Somerset","Northfield (Atlantic)","Fairview (Bergen)","Mansfield (Burlington)","Haddonfield (Camden)",null,null,"Roseland (Essex)","Washington (Gloucester)",null,"Lebanon Borough (Hunterdon)",null,"Plainsboro (Middlesex)","Hazlet (Monmouth)","Madison (Morris)","Long Beach (Ocean)",null,null,"Somerville (Somerset)","Sparta (Sussex)","Summit (Union)","Phillipsburg (Warren)",0,"Mansfield (Burlington)",null,"Somerset"]
["Sussex","Pleasantville (Atlantic)","Fort Lee (Bergen)","Maple Shade (Burlington)","Hi-Nella (Camden)",null,null,"Verona (Essex)","Wenonah (Gloucester)",null,"Lebanon Township (Hunterdon)",null,"Sayreville (Middlesex)","Highlands (Monmouth)","Mendham Borough (Morris)","Manchester (Ocean)",null,null,"South Bound Brook (Somerset)","Stanhope (Sussex)","Union (Union)","Pohatcong (Warren)",0,"Maple Shade (Burlington)",null,"Sussex"]
["Union","Port Republic (Atlantic)","Franklin Lakes (Bergen)","Medford (Burlington)","Laurel Springs (Camden)",null,null,"Village Of South Orange (Essex)","West Deptford (Gloucester)",null,"Milford (Hunterdon)",null,"South Amboy (Middlesex)","Holmdel (Monmouth)","Mendham Township (Morris)","Mantoloking (Ocean)",null,null,"Warren (Somerset)","Stillwater (Sussex)","Westfield (Union)","Washington Borough (Warren)",0,"Medford (Burlington)",null,"Union"]
["Warren","Somers Point (Atlantic)","Garfield (Bergen)","Medford Lakes (Burlington)","Lawnside (Camden)",null,null,"West Caldwell (Essex)","Westville (Gloucester)",null,"Raritan (Hunterdon)",null,"South Brunswick (Middlesex)","Howell (Monmouth)","Mine Hill (Morris)","Ocean (Ocean)",null,null,"Watchung (Somerset)","Sussex (Sussex)","Winfield (Union)","Washington Township (Warren)",0,"Medford Lakes (Burlington)",null,"Warren"]
[null,"Ventnor City (Atlantic)","Glen Rock (Bergen)","Moorestown (Burlington)","Lindenwold (Camden)",null,null,"West Orange (Essex)","Woodbury (Gloucester)",null,"Readington (Hunterdon)",null,"South Plainfield (Middlesex)","Interlaken (Monmouth)","Montville (Morris)","Ocean Gate (Ocean)",null,null,null,"Vernon (Sussex)",null,"White (Warren)",0,"Moorestown (Burlington)"]
[null,"Weymouth (Atlantic)","Hackensack (Bergen)","Mount Holly (Burlington)","Magnolia (Camden)",null,null,null,"Woodbury Heights (Gloucester)",null,"Stockton (Hunterdon)",null,"South River (Middlesex)","Keansburg (Monmouth)","Morris (Morris)","Pine Beach (Ocean)",null,null,null,"Walpack (Sussex)",null,null,null,"Mount Holly (Burlington)"]
[null,null,"Harrington Park (Bergen)","Mount Laurel (Burlington)","Merchantville (Camden)",null,null,null,"Woolwich (Gloucester)",null,"Tewksbury (Hunterdon)",null,"Spotswood (Middlesex)","Keyport (Monmouth)","Morris Plains (Morris)","Plumsted (Ocean)",null,null,null,"Wantage (Sussex)",null,null,null,"Mount Laurel (Burlington)"]
[null,null,"Hasbrouck Heights (Bergen)","New Hanover (Burlington)","Mount Ephraim (Camden)",null,null,null,null,null,"Union (Hunterdon)",null,"Woodbridge (Middlesex)","Little Silver (Monmouth)","Morristown (Morris)","Point Pleasant (Ocean)",null,null,null,null,null,null,null,"New Hanover (Burlington)"]
[null,null,"Haworth (Bergen)","North Hanover (Burlington)","Oaklyn Borough (Camden)",null,null,null,null,null,"West Amwell (Hunterdon)",null,null,"Loch Arbour (Monmouth)","Mount Arlington (Morris)","Point Pleasant Beach (Ocean)",null,null,null,null,null,null,null,"North Hanover (Burlington)"]
[null,null,"Hillsdale (Bergen)","Palmyra (Burlington)","Pennsauken (Camden)",null,null,null,null,null,null,null,null,"Long Branch (Monmouth)","Mount Olive (Morris)","Seaside Heights (Ocean)",null,null,null,null,null,null,null,"Palmyra (Burlington)"]
[null,null,"Ho-Ho-Kus (Bergen)","Pemberton Borough (Burlington)","Pine Hill (Camden)",null,null,null,null,null,null,null,null,"Manalapan (Monmouth)","Mountain Lakes (Morris)","Seaside Park (Ocean)",null,null,null,null,null,null,null,"Pemberton Borough (Burlington)"]
[null,null,"Leonia (Bergen)","Pemberton Township (Burlington)","Pine Valley (Camden)",null,null,null,null,null,null,null,null,"Manasquan (Monmouth)","Netcong (Morris)","Ship Bottom (Ocean)",null,null,null,null,null,null,null,"Pemberton Township (Burlington)"]
[null,null,"Little Ferry (Bergen)","Riverside (Burlington)","Runnemede (Camden)",null,null,null,null,null,null,null,null,"Marlboro (Monmouth)","Parsippany-Troy Hills (Morris)","South Toms River (Ocean)",null,null,null,null,null,null,null,"Riverside (Burlington)"]
[null,null,"Lodi (Bergen)","Riverton (Burlington)","Somerdale (Camden)",null,null,null,null,null,null,null,null,"Matawan (Monmouth)","Pequannock (Morris)","Stafford (Ocean)",null,null,null,null,null,null,null,"Riverton (Burlington)"]
[null,null,"Lyndhurst (Bergen)","Shamong (Burlington)","Stratford (Camden)",null,null,null,null,null,null,null,null,"Middletown (Monmouth)","Randolph (Morris)","Surf City (Ocean)",null,null,null,null,null,null,null,"Shamong (Burlington)"]
[null,null,"Mahwah (Bergen)","Southampton (Burlington)","Tavistock (Camden)",null,null,null,null,null,null,null,null,"Millstone (Monmouth)","Riverdale (Morris)","Tuckerton (Ocean)",null,null,null,null,null,null,null,"Southampton (Burlington)"]
[null,null,"Maywood (Bergen)","Springfield (Burlington)","Voorhees (Camden)",null,null,null,null,null,null,null,null,"Monmouth Beach (Monmouth)","Rockaway Borough (Morris)",null,null,null,null,null,null,null,null,"Springfield (Burlington)"]
[null,null,"Midland Park (Bergen)","Tabernacle (Burlington)","Waterford (Camden)",null,null,null,null,null,null,null,null,"Neptune (Monmouth)","Rockaway Township (Morris)",null,null,null,null,null,null,null,null,"Tabernacle (Burlington)"]
[null,null,"Montvale (Bergen)","Washington (Burlington)","Winslow (Camden)",null,null,null,null,null,null,null,null,"Neptune City (Monmouth)","Roxbury (Morris)",null,null,null,null,null,null,null,null,"Washington (Burlington)"]
[null,null,"Moonachie (Bergen)","Westampton (Burlington)","Woodlynne (Camden)",null,null,null,null,null,null,null,null,"Ocean (Monmouth)","Victory Gardens (Morris)",null,null,null,null,null,null,null,null,"Westampton (Burlington)"]
[null,null,"New Milford (Bergen)","Willingboro (Burlington)",null,null,null,null,null,null,null,null,null,"Oceanport (Monmouth)","Washington (Morris)",null,null,null,null,null,null,null,null,"Willingboro (Burlington)"]
[null,null,"North Arlington (Bergen)","Woodland (Burlington)",null,null,null,null,null,null,null,null,null,"Red Bank (Monmouth)","Wharton (Morris)",null,null,null,null,null,null,null,null,"Woodland (Burlington)"]
[null,null,"Northvale (Bergen)","Wrightstown (Burlington)",null,null,null,null,null,null,null,null,null,"Roosevelt (Monmouth)",null,null,null,null,null,null,null,null,null,"Wrightstown (Burlington)"]
[null,null,"Norwood (Bergen)",null,null,null,null,null,null,null,null,null,null,"Rumson (Monmouth)"]
[null,null,"Oakland (Bergen)",null,null,null,null,null,null,null,null,null,null,"Sea Bright (Monmouth)"]
[null,null,"Old Tappan (Bergen)",null,null,null,null,null,null,null,null,null,null,"Sea Girt (Monmouth)"]
[null,null,"Oradell (Bergen)",null,null,null,null,null,null,null,null,null,null,"Shrewsbury Borough (Monmouth)"]
[null,null,"Palisades Park (Bergen)",null,null,null,null,null,null,null,null,null,null,"Shrewsbury Township (Monmouth)"]
[null,null,"Paramus (Bergen)",null,null,null,null,null,null,null,null,null,null,"South Belmar (Monmouth)"]
[null,null,"Park Ridge (Bergen)",null,null,null,null,null,null,null,null,null,null,"Spring Lake Boro (Monmouth)"]
[null,null,"Ramsey (Bergen)",null,null,null,null,null,null,null,null,null,null,"Spring Lake Heights (Monmouth)"]
[null,null,"Ridgefield (Bergen)",null,null,null,null,null,null,null,null,null,null,"Tinton Falls (Monmouth)"]
[null,null,"Ridgefield Park (Bergen)",null,null,null,null,null,null,null,null,null,null,"Union Beach (Monmouth)"]
[null,null,"Ridgewood (Bergen)",null,null,null,null,null,null,null,null,null,null,"Upper Freehold (Monmouth)"]
[null,null,"River Edge (Bergen)",null,null,null,null,null,null,null,null,null,null,"Wall (Monmouth)"]
[null,null,"River Vale (Bergen)",null,null,null,null,null,null,null,null,null,null,"West Long Branch (Monmouth)"]
[null,null,"Rochelle Park (Bergen)"]
[null,null,"Rockleigh (Bergen)"]
[null,null,"Rutherford (Bergen)"]
[null,null,"Saddle Brook (Bergen)"]
[null,null,"Saddle River (Bergen)"]
[null,null,"South Hackensack (Bergen)"]
[null,null,"Teaneck (Bergen)"]
[null,null,"Tenafly (Bergen)"]
[null,null,"Teterboro (Bergen)"]
[null,null,"Upper Saddle River (Bergen)"]
[null,null,"Waldwick (Bergen)"]
[null,null,"Wallington (Bergen)"]
[null,null,"Washington (Bergen)"]
[null,null,"Westwood (Bergen)"]
[null,null,"Woodcliff Lake (Bergen)"]
[null,null,"Wood-Ridge (Bergen)"]
[null,null,"Wyckoff (Bergen)"]